Cogmind - Beta 16 --- EXPLORER MODE // 2026.01.07 @ 09:27:12 Player: K.K.Y. Result: Destroyed by Autobeam Turret with Autobeam Performance ------------- Evolutions (0) 0 Regions Visited (3) 600 Robots Destroyed (39) 195 Value Destroyed (964) 964 Prototype IDs (12) 240 Alien Tech Used (0) 0 Bonus (0) 0 TOTAL SCORE: 1999 Bonus ------- None Cogmind --------- Core Integrity 0/250 Matter 300/300 Energy 98/100 System Corruption 0% Temperature Cool (13) Movement Treading (460) Ox3 Location -10/Subcaves Parts ------- > --- POWER (1) -------- (None) > --- PROPULSION (2) --- Spiked Treads > --- UTILITY (3) ------ High-capacity Storage Unit Core Shielding Makeshift Light Armor Plating > --- WEAPON (2) ------- Subdweller Beam Cannon Subdweller Beam Cannon > --- INVENTORY (20) --- Improved Heat Sink Medium Storage Unit Large Storage Unit Structural Scanner Structural Scanner Sensor Array Sensor Array Experimental Sensor Array Targeting Computer Targeting Computer Utility Shielding Light Armor Plating Medium Laser Medium Laser Battle Rifle Battle Cannon Multitool Enhanced Flamer Peak State ------------ > --- POWER ------------ Ion Engine > --- PROPULSION ------- Light Treads Light Treads > --- UTILITY ---------- High-capacity Storage Unit Power Shielding Utility Shielding > --- WEAPON ----------- Barrage Gun Barrage Gun > --- INVENTORY -------- Makeshift Power Source Light Treads Spiked Treads Medium Storage Unit Large Storage Unit Structural Scanner Structural Scanner Sensor Array Sensor Array Experimental Sensor Array Targeting Computer Targeting Computer Core Shielding Makeshift Light Armor Plating Medium Laser Medium Laser Battle Rifle Battle Cannon Multitool Enhanced Flamer [Rating: 16] Favorites ----------- Power Ion Engine Engine Ion Engine Power Core Light Nuclear Core Propulsion Light Treads Treads Light Treads Utility Power Shielding Storage High-capacity Storage Unit Protection Power Shielding Weapon Medium Laser Energy Gun Medium Laser Energy Cannon Subdweller Beam Cannon Ballistic Gun Barrage Gun Special Weapon Mining Laser Build | -11 -10 -10 -10 ------- Run | Yrd Mat Min Sub Slots Evolved 1 | . 1 . . Power . | . . . . Propulsion . | . . . . Utility 1 | . 1 . . Weapon . | . . . . Parts Attached 25 | 7 4 . 14 Power 4 | 1 1 . 2 Engine 3 | 1 1 . 1 Core 1 | . . . 1 Reactor . | . . . . Propulsion 5 | 2 . . 3 Treads 5 | 2 . . 3 Leg . | . . . . Wheel . | . . . . Hover . | . . . . Flight . | . . . . Utility 7 | 2 1 . 4 Device . | . . . . Storage 2 | . 1 . 1 Processor . | . . . . Hackware . | . . . . Protection 5 | 2 . . 3 Artifact . | . . . . Weapon 9 | 2 2 . 5 Energy Gun 3 | 2 1 . . Energy Cannon 2 | . . . 2 Ballistic Gun 3 | . . . 3 Ballistic Cannon . | . . . . Launcher . | . . . . Special Weapon 1 | . 1 . . Impact Weapon . | . . . . Slashing Weapon . | . . . . Piercing Weapon . | . . . . Special Melee Weapon . | . . . . Unidentified Prototypes . | . . . . Parts Lost 8 | . . . 8 Power 2 | . . . 2 Propulsion 4 | . . . 4 Utility . | . . . . Weapon 2 | . . . 2 Highest Loss Streak 3 | . . . 3 To Critical Strikes 1 | . . . 1 Average Backups 14 | 2 7 12 18 Power . | . . . . Propulsion 1 | . . 2 1 Utility 9 | 1 5 9 11 Weapon 3 | . 1 1 4 Tool/Special . | . . . . Unused Backups 14 | . 1 . 13 Power . | . . . . Propulsion . | . . . . Utility 9 | . . . 9 Weapon 4 | . 1 . 3 Tool/Special 1 | . . . 1 Average Slot Usage (%) 93 | . 98 100 89 Engine 9 | . 11 12 7 Treads 23 | . 24 25 22 Storage 11 | . 10 12 12 Protection 25 | . 25 25 25 Energy Gun 12 | . 23 25 3 Energy Cannon 3 | . . . 5 Ballistic Gun 6 | . . . 11 Peak Build Rating 16 | 7 9 10 16 Average Rating 11 | 5 8 9 13 On Entrance 6 | . 7 9 10 Avg Prop Armor Cover (%) . | . . . . Naked Turns . | . . . . Heaviest Build 61 | 8 31 31 61 Greatest Support 40 | 40 40 40 40 Greatest Overweight (x) 3 | . 1 . 3 Average Overweight (x) . | . . . 1 Largest Inventory Capacity 20 | 5 15 15 20 Average Capacity 17 | 5 13 15 19 Most Carried 20 | 5 12 13 20 Average Carried 14 | 2 7 12 18 Final Capacity 20 | 5 15 15 20 Final Carried 18 | 4 12 13 18 Class Distribution -------------------- 100% | Hacker-Mutant Dominant Class ---------------- Hacker-Mutant | -10/Materials Hacker-Mutant | -10/Mines Hacker-Mutant | -10/Subcaves Resources | -11 -10 -10 -10 ----------- Run | Yrd Mat Min Sub Matter Collected 920 | 270 140 . 510 Remotely . | . . . . Salvage Created 1290 | 118 265 . 907 Parts 84 | 4 26 . 54 Haulers Intercepted 2 | . 2 . . Recyclers Shooed . | . . . . Parts Field Recycled . | . . . . Retrieved Matter . | . . . . Parts Self-Destructed . | . . . . Prevented . | . . . . Parts Restored . | . . . . Kills | -11 -10 -10 -10 ------- Run | Yrd Mat Min Sub Combat Hostiles Destroyed 28 | . 6 1 21 Guns 18 | . 6 . 12 Cannons 8 | . . . 8 Classes Destroyed 12 | 2 4 1 5 Builder 1 | . 1 . . Tunneler 3 | 3 . . . Hauler 2 | . 2 . . Recycler 1 | 1 . . . Turret 1 | . . . 1 Watcher 3 | . 3 . . Swarmer 10 | . 6 . 4 Grunt 4 | . . . 4 Sentry 1 | . . . 1 Demolisher 1 | . . 1 . Artisan 1 | . . . 1 Subdweller 12 | . . . 12 Best Kill Streak 4 | 3 4 1 4 Combat Bots Only 4 | . 4 1 4 Max Kills in Single Turn 1 | 1 1 1 1 Gunslinging . | . . . . Exploded . | . . . . Melee . | . . . . Uniques/NPCs Destroyed . | . . . . Combat | -11 -10 -10 -10 -------- Run | Yrd Mat Min Sub Hostile Shots Fired 237 | . 23 4 210 Missed 88 | . 5 . 83 Hits 149 | . 18 4 127 Projectile 149 | . 18 4 127 AOE 4 | . . 4 . Critical Strikes 4 | . . . 4 Damage Taken 1308 | . 93 88 1127 Core 252 | . 10 18 224 Absorbed by Shields . | . . . . Redirected to Shielding 55 | . 7 5 43 Ignored by Resistances 810 | . 69 52 689 Core Remaining (%) 100 | 100 . . . Volleys Fired 154 | 13 30 3 108 Largest 2 | 2 2 2 2 Hottest 160 | 90 150 100 160 Shots Fired 252 | 26 52 6 168 Gun 204 | 26 49 6 123 Cannon 45 | . . . 45 Launcher . | . . . . Special 3 | . 3 . . Kinetic 103 | . . . 103 Thermal 149 | 26 52 6 65 Explosive . | . . . . Electromagnetic . | . . . . Robot Hit Streak 67 | 9 18 9 67 Robot Miss Streak 3 | 1 3 . 1 Penetration Max . | . . . . Secondary Targets 1 | . . . 1 Max Gunslinging Chain 1 | . . . 1 Shots Hit Robots 179 | 22 33 6 118 Core Hits 54 | 5 15 . 34 Critical Kills 1 | . . . 1 Critical Parts Destroyed . | . . . . Critical Strikes 5 | 1 1 1 2 Burn 4 | 1 1 1 1 Meltdown 1 | . . . 1 Melee Attacks . | . . . . Impact . | . . . . Slashing . | . . . . Piercing . | . . . . Sneak Attacks . | . . . . Combat Hostiles . | . . . . Follow-up Attacks . | . . . . Damage Inflicted 3011 | 261 395 73 2282 Guns 2091 | 261 395 73 1362 Cannons 920 | . . . 920 Explosions . | . . . . Melee . | . . . . Ramming . | . . . . Kinetic 1174 | . . . 1174 Thermal 1837 | 261 395 73 1108 Explosive . | . . . . Electromagnetic . | . . . . Impact . | . . . . Slashing . | . . . . Piercing . | . . . . Highest Corruption . | . . . . Average Corruption . | . . . . Corruption Purged . | . . . . Corruption Blocked . | . . . . Overload Shots . | . . . . Overflow Damage 18 | . . . 18 Projectiles 18 | . . . 18 Explosions . | . . . . Melee . | . . . . Knockbacks . | . . . . Impact . | . . . . Kinetic . | . . . . Secondary . | . . . . Self-Inflicted Damage . | . . . . Shots . | . . . . Rammed . | . . . . Targets Rammed . | . . . . Kicked . | . . . . Crushed . | . . . . Highest Temperature 162 | 162 120 117 147 Average Temperature 44 | 58 36 59 39 Received Heat Transfer 585 | . . . 585 Siege Activations . | . . . . Martial Activations . | . . . . Shielding Activations . | . . . . Robots Disrupted . | . . . . Combat Hostiles . | . . . . Robots Corrupted . | . . . . Combat Hostiles . | . . . . Parts Fried . | . . . . Impact Corruptions . | . . . . Robots Melted 2 | . . 1 1 Combat Hostiles 2 | . . 1 1 Parts Melted 6 | 3 . . 3 Heat Transferred 4078 | 756 1139 296 1887 Parts Sabotaged . | . . . . Parts Stolen . | . . . . Parts Stripped . | . . . . Power Chain Reactions . | . . . . Alert | -11 -10 -10 -10 ------- Run | Yrd Mat Min Sub Maximum Alert Level . | . . . . Low Security (%) 100 | 100 100 100 . Level 1 . | . . . . Level 2 . | . . . . Level 3 . | . . . . Level 4 . | . . . . Level 5 . | . . . . High Security . | . . . . Max Security . | . . . . Peak Influence 85 | 5 85 30 . Initial . | . . . . Average 2 | 1 4 . . Influence Increases 557 | 20 212 30 295 Destroy 0b10 Robot/C 340 | . 120 20 200 Destroy 0b10 Robot/NC 50 | 20 30 . . Destroy Leader 70 | . 40 10 20 Successful Hack 16 | . 16 . . Disable Machine 4 | . 4 . . Destroy Structure 2 | . 2 . . Lose Combat Pursuer 75 | . . . 75 Influence Decreases 482 | 20 212 30 220 Time Decay 472 | 20 212 30 210 Lost Part 10 | . . . 10 Squads Dispatched . | . . . . Investigation . | . . . . Extermination . | . . . . Reinforcement . | . . . . Assault . | . . . . Garrison . | . . . . Intercept . | . . . . Searches Triggered . | . . . . Construction Impeded . | . . . . Haulers Reinforced . | . . . . Active Scanning Responses . | . . . . Cargo Convoy Interrupts . | . . . . Stealth | -11 -10 -10 -10 --------- Run | Yrd Mat Min Sub Distress Signals . | . . . . Communications Jammed . | . . . . Distress Signals . | . . . . Times Spotted 40 | . 11 1 28 Peak Tracking Total 6 | . 2 1 6 Tactical Retreats 3 | . . . 3 Traps | -11 -10 -10 -10 ------- Run | Yrd Mat Min Sub Traps Triggered 3 | . 2 . 1 Indirectly . | . . . . Trap Hack Attempts . | . . . . Triggered . | . . . . Disarmed . | . . . . Reprogrammed . | . . . . Reused . | . . . . Traps Extracted . | . . . . Installed . | . . . . Triggered . | . . . . Machines | -11 -10 -10 -10 ---------- Run | Yrd Mat Min Sub Machines Disabled 2 | . 1 . 1 Max in Single Turn 1 | . 1 . 1 Machines Repaired . | . . . . Machines Dismantled . | . . . . Machines Sabotaged . | . . . . Overloaded Fab Kills . | . . . . Hacking | -11 -10 -10 -10 --------- Run | Yrd Mat Min Sub Machines Accessed 12 | . 8 . 4 Terminals 8 | . 8 . . Fabricators . | . . . . Repair Stations . | . . . . Recycling Units . | . . . . Scanalyzers . | . . . . Garrison Access . | . . . . Total Hacks 20 | . 12 . 8 Successful 16 | . 8 . 8 Failed 4 | . 4 . . Catastrophic . | . . . . Database Lockouts . | . . . . Manual 11 | . 11 . . Terminals 12 | . 12 . . Fabricators . | . . . . Repair Stations . | . . . . Recycling Units . | . . . . Scanalyzers . | . . . . Garrison Access . | . . . . Terminal Hacks 9 | . 1 . 8 Record 5 | . . . 5 Robot Analysis 1 | . 1 . . Open Door 1 | . . . 1 Proto ID Catalog 1 | . . . 1 Release Object 1 | . . . 1 Fabricator Hacks . | . . . . Repair Station Hacks . | . . . . Recycling Unit Hacks . | . . . . Scanalyzer . | . . . . Garrison Access Hacks . | . . . . Unauthorized Hacks 7 | . 7 . . Terminals 7 | . 7 . . Botnet 7 | . 7 . . Fabricators . | . . . . Repair Stations . | . . . . Recycling Units . | . . . . Scanalyzers . | . . . . Garrison Access . | . . . . Data Cores Recovered . | . . . . Used . | . . . . Hacking Detections 4 | . 4 . . Full Trace Events . | . . . . Feedback Events . | . . . . Feedback Blocked . | . . . . Robot Schematics Acquired . | . . . . Robots Built . | . . . . Authchips . | . . . . Time . | . . . . Total Robot Build Rating . | . . . . Part Schematics Acquired . | . . . . Parts Built . | . . . . Authchips . | . . . . Time . | . . . . Total Part Build Rating . | . . . . Part Studies Acquired . | . . . . Parts Repaired . | . . . . Time . | . . . . Parts Recycled . | . . . . Recycled Matter . | . . . . Retrieved Matter . | . . . . Retrieved Components . | . . . . Parts Scanalyzed . | . . . . Part Schematics Acquired . | . . . . Parts Damaged . | . . . . Bothacking | -11 -10 -10 -10 ------------ Run | Yrd Mat Min Sub Used RIF Installer . | . . . . Robots Hacked . | . . . . Non-combat . | . . . . Combat . | . . . . Robot Hacks Applied . | . . . . Relay Couplers Released . | . . . . Fabnet Peak Effective % . | . . . . Robots Rewired . | . . . . Allies Hacked . | . . . . Hacks Repelled . | . . . . Allies | -11 -10 -10 -10 -------- Run | Yrd Mat Min Sub Total Allies . | . . . . Largest Group . | . . . . Highest-Rated Group . | . . . . Highest-Rated Ally . | . . . . Total Orders . | . . . . Ally Attacks . | . . . . Total Damage . | . . . . Kills . | . . . . Allies Corrupted . | . . . . Allies Melted . | . . . . Intel | -11 -10 -10 -10 ------- Run | Yrd Mat Min Sub Active Infowar (turns) . | . . . . Robot Analysis Total 1 | . 1 . . Derelict Logs Recovered 3 | . . 1 2 Drone Launches . | . . . . Drone Recoveries . | . . . . Exploration | -11 -10 -10 -10 ------------- Run | Yrd Mat Min Sub Turns Passed 8170 | 137 2085 1544 4404 Spaces Moved 3453 | 67 928 837 1621 Core 23 | 23 . . . Treads 3430 | 44 928 837 1621 Legs . | . . . . Wheels . | . . . . Hover . | . . . . Flight . | . . . . Fastest Speed 50 | 50 160 160 160 Average Speed 202 | 122 160 160 250 Slowest Speed 460 | 160 240 160 460 Overloaded Moves . | . . . . Propulsion Burnouts . | . . . . Robots Hopped . | . . . . Potential Cave-ins . | . . . . Cave-ins Triggered . | . . . . Exploration Rate (%) 74 | 5 98 101 92 Regions Visited 3 Branch Regions 2 Pre-discovered Areas 1 | . . . 1 Known Exits Taken 3 | 1 1 1 . Unknown Exits Taken . | . . . . Scrap Searched 7 | . . . 7 Spaces Dug 2 | . 2 . . Terrain Destroyed 2 | . 2 . . Melee . | . . . . Projectile 2 | . 2 . . AOE . | . . . . Terrain Rammed . | . . . . Walls Destroyed . | . . . . Machines Disabled . | . . . . Actions | -11 -10 -10 -10 --------- Run | Yrd Mat Min Sub Total 4399 | 96 1465 1036 1802 Wait 716 | . 478 196 42 Move 3450 | 66 927 836 1621 Hop . | . . . . Pick Up 37 | 10 13 1 13 Fast Attach 3 | 1 1 . 1 Attach 14 | 6 2 . 6 Detach . | . . . . Swap 18 | . 11 . 7 Drop 7 | . 3 . 4 Fire 154 | 13 30 3 108 Melee . | . . . . Ram . | . . . . Kick . | . . . . Crush . | . . . . Escape Stasis . | . . . . Rewire . | . . . . Trap . | . . . . Miscellaneous . | . . . . Route ------- -11/Scrapyard -10/Materials (discovered 6 exits: *Mat x3 / *Min x2 / *Sub) -10/Mines (discovered 3 exits: *Mat x2 / *Sub) -10/Subcaves (discovered 3 exits: *Mat x2 / [*Scr]) History --------- Turn | Location | Event 2 | -11/Scrapyard | Met Revision 17 6 | -11/Scrapyard | Identified exit to Materials 6 | -11/Scrapyard | Discovered exit to Materials (range 15) 138 | -11/Scrapyard | Entered Materials 138 | -10/Materials | Evolved 1 slot: Utility x1 143 | -10/Materials | Identified exit to Mines 143 | -10/Materials | Discovered exit to Mines (range 4) 310 | -10/Materials | Build established: Hacker-Mutant 336 | -10/Materials | Identified exit to Materials 336 | -10/Materials | Discovered exit to Materials (range 13) 501 | -10/Materials | Discovered exit to Mines (range 12) 1258 | -10/Materials | Discovered exit to Materials (range 13) 1933 | -10/Materials | Identified exit to Subcaves 1933 | -10/Materials | Discovered exit to Subcaves (range 9) 1979 | -10/Materials | Discovered exit to Materials (range 12) 2223 | -10/Materials | Entered Mines 2279 | -10/Mines | Assembled infested the area 2284 | -10/Mines | Assisted by a Guerilla fighting off Assembled 2326 | -10/Mines | Found a hidden stash of uninstalled traps 2405 | -10/Mines | Discovered exit to Materials (range 6) 2624 | -10/Mines | Found a damaged Exp. Sensor Array with a note attached 2628 | -10/Mines | Found Prototype Device 2645 | -10/Mines | Discovered exit to Materials (range 7) 3757 | -10/Mines | Discovered exit to Subcaves (range 6) 3767 | -10/Mines | Entered Subcaves 3768 | -10/Subcaves | Approached by a straggling Scientist 3800 | -10/Subcaves | Ambushed by angry Subdweller bent on revenge 3905 | -10/Subcaves | Visited 4L-MR0's lab 4253 | -10/Subcaves | Shifting Twisted Machinery released Sub. Power Source 4289 | -10/Subcaves | Shifting Twisted Machinery released Flamer 4474 | -10/Subcaves | Visited Clippyterm 4481 | -10/Subcaves | Learned location of Deep Caves (-6) 4481 | -10/Subcaves | Learned 40 Factory zone layouts 5298 | -10/Subcaves | Shifting Twisted Machinery released Mak. Light Armor Plating 5304 | -10/Subcaves | Shifting Twisted Machinery released Flamer 5424 | -10/Subcaves | Scientist uncovered a shortcut to Scraptown 5540 | -10/Subcaves | A swath of the cavern ceiling suddenly collapsed 5541 | -10/Subcaves | Learned Materials interactive machine intel 5678 | -10/Subcaves | Identified exit to Materials 5678 | -10/Subcaves | Discovered exit to Materials (range 15) 6048 | -10/Subcaves | Discovered exit to Materials (range 11) 6096 | -10/Subcaves | Core integrity fell below 50% 6696 | -10/Subcaves | A swath of the cavern ceiling suddenly collapsed 6823 | -10/Subcaves | Lost 3 parts (1p1n1w) 7099 | -10/Subcaves | Ambushed by Subdweller buried in earth 7193 | -10/Subcaves | Core integrity fell below 20% 8171 | -10/Subcaves | Destroyed by Autobeam Turret with Autobeam Last Messages --------------- 07340_ Searching scrap... 07340_ Found Scrap Shield. 07340_ Found 46 Matter. 07658_ 3O-BL9(u) builds Twisted Machinery. 08062_ Destroyed Flight Unit. 08064_ S-10 Pest destroyed. 08068_ S-10 Pest suffers critical hit (Meltdown). 08070_ Lgt. Treads destroyed. 08070_ S-10 Pest destroyed. 08094_ Dropped Power Shielding. 08095_ Acquired 10 matter. 08096_ Acquired 4 matter. 08104_ Acquired 15 matter. 08113_ Acquired 11 matter. 08127_ Acquired Flight Unit. 08128_ Dropped Flight Unit. 08148_ Destroyed Autobeam. 08148_ Autobeam Turret destroyed. 08148_ Machine disabled. Map ----- +----------------------------------------------------+ | ?# """###### ##??????????????????????????? | | ?# ##### #????## ###?????????????????????????? | | ?# #????# #?????## #?????????????????????????? | | ?# #????# #?????## #?????????????????????????? | | ?# #????# ####### #?????????????????????????? | | ## ###??# #####?????????????????????????? | | # #### ##?????????????????????????????? | | ## ## # ###??????????????????????????????? | | ######????????????????????????????????? | | # # #?????????????????????????????????????? | | ##### ##???????????? "???????????????????????? | | ????### ##?????????? " ???????????????????????? | | ??????####???????????? t ???????????????????????? | | ?????????????????????? ???????????????????????? | | ?????????????????????? ???????????????????????? | | ?????????????????????? ???????????????????????? | | ??????????????????????# ?????????????????????### | | ??????????????????????#$ #????????????????????# # | | ??????????????????????# #????????????????????# | | ??????????????????????# #???????????????????## | | ??????????????????????# #??????????????????## | | ??????????????????????# #?????????????????## | | ??????????????????????# #?????????????????# | | ??????????????????????# ####??????????????##### | | ?????????????????????## &# !#??????????????????## | | ????????????????????## &@& =##??????????????????# | | ???????????????????## !&%[= ####???????????????? | | ?????????????###???# =## ##??????????????? | | ????????????## #??# ### #??????????????? | | ???????###### ## ### #??????????????? | | ???????# ## ## ####### ## #??????????????? | | ???###?# ##??##### #?# #??????????????? | | ??## ### #### ##?? ##??????????????? | | ?## ###????#???????????????? | | ?# ##??????????????????????? | | ?# # ##???###?????????????????? | | ?# ####### #???# #?????????????????? | | ?# ##????# #### #?????????????????? | | ?# "#????# #?????????????????? | | ?# "#????# ## ###?????????????????? | | ?#"" "#????# ### ##???????????????????? | | ?## "##???## ######## ####????????????????????? | | ??# #????# # ###??# #???????????????????????? | | ?## ##???#> #### #???????????????????????? | | ?#" #???## # ##???????????????????????? | | ?# #????## #???????????????????????? | | ?# ####### ## # # ###???????????????????????? | | ?# |## # ####?????????????????????????# | | ?## " ## ####??????????????????????????# | | ??##""""" ## ## ##?????????????????????????# | +----------------------------------------------------+ Best States ------------- Heat Dissipation 25 Energy Generation 15 Energy Capacity 250 Matter Stores 300 Matter Capacity 300 Sight Range 16 Terrain Scan Density 10 Armor Coverage 100 Resistance: KI 35 Resistance: TH 35 Resistance: EX 35 Resistance: EM 35 Resistance: I 35 Resistance: S 35 Resistance: P 35 Core Shielding 20 Power Shielding 33 Utility Shielding 33 Evasion (%) 50 Recoil Reduction 2 Offensive Hacking 20 Item Schematics ----------------- None Robot Schematics ------------------ None Fabricated ------------ Nothing Repaired ---------- Nothing Studied --------- None Alien Tech Used ----------------- None Achievements -------------- None Challenges ------------ None Game ------ Seed ThiefDisruptionSuit Manual? 0 Play Time 00:24:09 Cumulative 255.6 hours Start 2026.01.07 @ 09:02:57 End 2026.01.07 @ 09:27:12 Sessions 1 Manual Loads 0 Difficulty Explorer Special Mode None Game No. 402 Rogue 0 Adventurer 0 Explorer 402 Win Type - Total 0 Types 0/0/0/0/0/0/0/0/0/0 Lore% 72 Gallery% 69 Achievement% 54 Wizard Run 0 Options --------- Layout 1 ASCII 0 Keyboard 0 Movement Mouse Keybinds 0 Fullscreen 1 Font 24/Smallcaps Map View 50x35 Zoom Use 0% Tactical HUD 1 Map Filters NONE Filters NONE Steam 1 RUN: 910f0563-a709-4890-a2fb-1894304bde1c